[Event "Late-Titled-Tuesday-Blitz-February-27-2024"]
[Site "Chess.com"]
[Date "2024.02.27"]
[Round "5"]
[White "masterofpuppets2"]
[Black "Zampronha1971"]
[Result "0-1"]
[WhiteElo "2495"]
[BlackElo "2347"]
[TimeControl "180+1"]
[EndTime "14:57:29 PST"]
[Termination "Zampronha1971 won by resignation"]

1. d4 {[%clk 0:03:00.9]} 1... Nf6 {[%clk 0:02:59]} 2. c4 {[%clk 0:03:01.5]} 2...
c5 {[%clk 0:02:57.8]} 3. d5 {[%clk 0:03:01.4]} 3... e6 {[%clk 0:02:58]} 4. Nc3
{[%clk 0:03:01.3]} 4... exd5 {[%clk 0:02:58.7]} 5. cxd5 {[%clk 0:03:02]} 5... d6
{[%clk 0:02:59.3]} 6. e4 {[%clk 0:03:02.6]} 6... g6 {[%clk 0:02:59.8]} 7. h3
{[%clk 0:03:01.3]} 7... Bg7 {[%clk 0:03:00.1]} 8. Nf3 {[%clk 0:03:02]} 8... O-O
{[%clk 0:03:00.3]} 9. Bd3 {[%clk 0:03:02.6]} 9... Re8 {[%clk 0:03:00.4]} 10. O-O
{[%clk 0:03:02.6]} 10... c4 {[%clk 0:03:00.5]} 11. Bxc4 {[%clk 0:02:54.3]} 11...
Nxe4 {[%clk 0:02:59.5]} 12. Nxe4 {[%clk 0:02:54.9]} 12... Rxe4 {[%clk
0:02:59.5]} 13. Bg5 {[%clk 0:02:54.1]} 13... f6 {[%clk 0:02:57.1]} 14. Bd3
{[%clk 0:02:50.2]} 14... Rb4 {[%clk 0:02:56.9]} 15. Qd2 {[%clk 0:02:46.4]} 15...
Rxb2 {[%clk 0:02:43]} 16. Qxb2 {[%clk 0:02:43.4]} 16... fxg5 {[%clk 0:02:43.2]}
17. Qb4 {[%clk 0:02:26.8]} 17... Bxa1 {[%clk 0:02:38.3]} 18. Rxa1 {[%clk
0:02:27.7]} 18... a5 {[%clk 0:02:05.3]} 19. Qd4 {[%clk 0:02:23.8]} 19... Nd7
{[%clk 0:02:02.4]} 20. Re1 {[%clk 0:02:17.3]} 20... Qf6 {[%clk 0:01:52.4]} 21.
Re8+ {[%clk 0:01:46.8]} 21... Kf7 {[%clk 0:01:51.6]} 22. Qe3 {[%clk 0:01:46.9]}
22... Ne5 {[%clk 0:01:31.6]} 23. Rxe5 {[%clk 0:01:27.5]} 23... dxe5 {[%clk
0:01:29.9]} 24. Nxe5+ {[%clk 0:01:27.5]} 24... Kg7 {[%clk 0:01:24.8]} 25. Qd4
{[%clk 0:01:13]} 25... Bf5 {[%clk 0:01:23.6]} 26. Bxf5 {[%clk 0:01:06]} 26...
gxf5 {[%clk 0:01:24.5]} 27. f4 {[%clk 0:01:03.4]} 27... g4 {[%clk 0:01:15.3]}
28. d6 {[%clk 0:00:58.7]} 28... gxh3 {[%clk 0:01:13.5]} 29. gxh3 {[%clk
0:00:51.8]} 29... Rd8 {[%clk 0:01:04.2]} 30. d7 {[%clk 0:00:50.8]} 30... b5
{[%clk 0:00:56.7]} 31. Qd5 {[%clk 0:00:24.1]} 31... Kf8 {[%clk 0:00:44.4]} 32.
Qxb5 {[%clk 0:00:20.5]} 32... Qd6 {[%clk 0:00:38.2]} 33. Qc4 {[%clk 0:00:19.3]}
33... Qd1+ {[%clk 0:00:27.6]} 34. Kg2 {[%clk 0:00:19.2]} 34... Ke7 {[%clk
0:00:24.4]} 35. Nc6+ {[%clk 0:00:17.3]} 35... Kxd7 {[%clk 0:00:23.6]} 36. Nxd8
{[%clk 0:00:18.2]} 36... Kxd8 {[%clk 0:00:23.1]} 37. Qg8+ {[%clk 0:00:17]} 37...
Kc7 {[%clk 0:00:20.4]} 38. Qxh7+ {[%clk 0:00:17.9]} 38... Kb6 {[%clk 0:00:20.9]}
39. Qxf5 {[%clk 0:00:18.3]} 39... Qe2+ {[%clk 0:00:18.8]} 40. Kg3 {[%clk
0:00:18.3]} 40... Qxa2 {[%clk 0:00:19.6]} 41. Qg6+ {[%clk 0:00:17.1]} 41... Kb5
{[%clk 0:00:17.4]} 42. f5 {[%clk 0:00:18]} 42... Qb3+ {[%clk 0:00:16]} 43. Kg4
{[%clk 0:00:18.7]} 43... a4 {[%clk 0:00:16]} 44. Qe8+ {[%clk 0:00:17.3]} 44...
Kb4 {[%clk 0:00:15.2]} 45. Qb8+ {[%clk 0:00:16.9]} 45... Kc3 {[%clk 0:00:15]}
46. Qc7+ {[%clk 0:00:15.6]} 46... Kb2 {[%clk 0:00:14.7]} 47. f6 {[%clk
0:00:15.1]} 47... a3 {[%clk 0:00:14.6]} 48. f7 {[%clk 0:00:13.4]} 48... Qb4+
{[%clk 0:00:13.9]} 49. Kg5 {[%clk 0:00:12.7]} 49... a2 {[%clk 0:00:14.4]} 50.
f8=Q {[%clk 0:00:11.9]} 50... Qxf8 {[%clk 0:00:13.5]} 51. Qe5+ {[%clk
0:00:11.3]} 51... Kb1 {[%clk 0:00:11.3]} 52. Qe4+ {[%clk 0:00:11.5]} 52... Kb2
{[%clk 0:00:11.3]} 53. Qd4+ {[%clk 0:00:12]} 53... Kb3 {[%clk 0:00:10.3]} 54.
Qd3+ {[%clk 0:00:11.5]} 54... Kb2 {[%clk 0:00:10.4]} 55. Qd2+ {[%clk 0:00:10.4]}
55... Kb3 {[%clk 0:00:09.4]} 56. Qd1+ {[%clk 0:00:09.4]} 56... Kb4 {[%clk
0:00:08.3]} 57. Qd4+ {[%clk 0:00:06.7]} 57... Ka3 {[%clk 0:00:08]} 58. Qc3+
{[%clk 0:00:06.5]} 58... Ka4 {[%clk 0:00:07.1]} 59. Qb2 {[%clk 0:00:06.5]} 59...
Qa3 {[%clk 0:00:05.6]} 60. Qc2+ {[%clk 0:00:03.3]} 60... Qb3 {[%clk 0:00:05.6]}
61. Qc6+ {[%clk 0:00:01.1]} 61... Qb5+ {[%clk 0:00:05.3]} 62. Qxb5+ {[%clk
0:00:02]} 62... Kxb5 {[%clk 0:00:05.8]} 63. h4 {[%clk 0:00:02.9]} 63... a1=Q
{[%clk 0:00:06.1]} 64. h5 {[%clk 0:00:03.8]} 64... Qh8 {[%clk 0:00:06.3]} 0-1

[Event "Late-Titled-Tuesday-Blitz-February-27-2024"]
[Site "Chess.com"]
[Date "2024.02.27"]
[Round "5"]
[White "SilverSwords13"]
[Black "KATPAH"]
[Result "0-1"]
[WhiteElo "2471"]
[BlackElo "2658"]
[TimeControl "180+1"]
[EndTime "14:57:30 PST"]
[Termination "KATPAH won by checkmate"]

1. e4 {[%clk 0:03:00.9]} 1... e5 {[%clk 0:02:59.7]} 2. Nf3 {[%clk 0:03:00.6]}
2... d6 {[%clk 0:03:00.4]} 3. d4 {[%clk 0:02:51.8]} 3... Bg4 {[%clk 0:03:00.8]}
4. dxe5 {[%clk 0:02:49.9]} 4... Nd7 {[%clk 0:03:01.4]} 5. exd6 {[%clk
0:02:49.3]} 5... Bxd6 {[%clk 0:03:02.3]} 6. Be2 {[%clk 0:02:48.6]} 6... Ngf6
{[%clk 0:03:02.9]} 7. O-O {[%clk 0:02:49.2]} 7... Qe7 {[%clk 0:03:02.8]} 8. Nc3
{[%clk 0:02:49.3]} 8... O-O-O {[%clk 0:03:02.4]} 9. h3 {[%clk 0:02:43.5]} 9...
Bh5 {[%clk 0:03:02]} 10. Be3 {[%clk 0:02:40.5]} 10... a6 {[%clk 0:02:56.1]} 11.
Re1 {[%clk 0:02:33]} 11... Nxe4 {[%clk 0:02:54.8]} 12. Nxe4 {[%clk 0:02:31]}
12... Qxe4 {[%clk 0:02:55.7]} 13. Ng5 {[%clk 0:02:16.5]} 13... Bxe2 {[%clk
0:02:53.6]} 14. Nxe4 {[%clk 0:02:09.3]} 14... Bxd1 {[%clk 0:02:53.2]} 15. Nxd6+
{[%clk 0:02:08.8]} 15... cxd6 {[%clk 0:02:54.1]} 16. Raxd1 {[%clk 0:02:08.5]}
16... Nf6 {[%clk 0:02:54.7]} 17. Bg5 {[%clk 0:02:04.7]} 17... Rd7 {[%clk
0:02:53.6]} 18. Bxf6 {[%clk 0:02:03.1]} 18... gxf6 {[%clk 0:02:54.5]} 19. Rd5
{[%clk 0:02:02]} 19... Rg8 {[%clk 0:02:49]} 20. Re3 {[%clk 0:01:53.1]} 20... Rg5
{[%clk 0:02:46.5]} 21. Rd4 {[%clk 0:01:44.1]} 21... Rc5 {[%clk 0:02:33.6]} 22.
c3 {[%clk 0:01:40.4]} 22... Kc7 {[%clk 0:02:27.7]} 23. Rf4 {[%clk 0:01:34.3]}
23... Ra5 {[%clk 0:02:27]} 24. a3 {[%clk 0:01:28.3]} 24... f5 {[%clk 0:02:23.9]}
25. Ref3 {[%clk 0:01:21.8]} 25... Rb5 {[%clk 0:02:09.3]} 26. b4 {[%clk
0:01:19.5]} 26... Kc6 {[%clk 0:02:00.5]} 27. Rxf5 {[%clk 0:01:15.4]} 27... Rxf5
{[%clk 0:02:00.6]} 28. Rxf5 {[%clk 0:01:16.3]} 28... d5 {[%clk 0:02:01]} 29. Kf1
{[%clk 0:01:14.7]} 29... Kb5 {[%clk 0:01:59.3]} 30. Ke2 {[%clk 0:01:11.8]} 30...
Kc4 {[%clk 0:01:42.4]} 31. Kd2 {[%clk 0:01:09.8]} 31... Kb3 {[%clk 0:01:43.1]}
32. Kd3 {[%clk 0:01:10.2]} 32... Rc7 {[%clk 0:01:32.7]} 33. Kd4 {[%clk
0:00:52.1]} 33... Rxc3 {[%clk 0:01:29.2]} 34. Rxf7 {[%clk 0:00:49.3]} 34... Rc2
{[%clk 0:01:26.2]} 35. g4 {[%clk 0:00:41.2]} 35... b5 {[%clk 0:01:21.6]} 36. f4
{[%clk 0:00:35.7]} 36... Kxa3 {[%clk 0:01:20.4]} 37. Rxh7 {[%clk 0:00:35.4]}
37... Kxb4 {[%clk 0:01:19.4]} 38. g5 {[%clk 0:00:36.1]} 38... a5 {[%clk
0:01:17.2]} 39. g6 {[%clk 0:00:33.8]} 39... a4 {[%clk 0:01:15.6]} 40. f5 {[%clk
0:00:29.2]} 40... Rg2 {[%clk 0:01:07.5]} 41. Kxd5 {[%clk 0:00:23.9]} 41... a3
{[%clk 0:00:59.7]} 42. Ra7 {[%clk 0:00:23.8]} 42... a2 {[%clk 0:00:59.5]} 43.
Ke6 {[%clk 0:00:16]} 43... Kc4 {[%clk 0:00:52.6]} 44. Kf7 {[%clk 0:00:14.9]}
44... b4 {[%clk 0:00:51.8]} 45. g7 {[%clk 0:00:15.3]} 45... b3 {[%clk
0:00:52.2]} 46. Ra4+ {[%clk 0:00:04.2]} 46... Kc5 {[%clk 0:00:49.3]} 47. g8=Q
{[%clk 0:00:03]} 47... Rxg8 {[%clk 0:00:48.6]} 48. Kxg8 {[%clk 0:00:03.9]} 48...
b2 {[%clk 0:00:49]} 49. Rxa2 {[%clk 0:00:04.1]} 49... b1=Q {[%clk 0:00:49.4]}
50. Ra5+ {[%clk 0:00:04.3]} 50... Kd6 {[%clk 0:00:48.7]} 51. f6 {[%clk
0:00:04.3]} 51... Qg6+ {[%clk 0:00:47.6]} 52. Kh8 {[%clk 0:00:04.5]} 52... Qxf6+
{[%clk 0:00:48.5]} 53. Kh7 {[%clk 0:00:05.1]} 53... Qh4+ {[%clk 0:00:45.7]} 54.
Kg6 {[%clk 0:00:05.4]} 54... Qxh3 {[%clk 0:00:45.3]} 55. Rg5 {[%clk 0:00:06.1]}
55... Ke6 {[%clk 0:00:45]} 56. Kg7 {[%clk 0:00:05.3]} 56... Qc3+ {[%clk
0:00:43.7]} 57. Kg6 {[%clk 0:00:05.7]} 57... Qf6+ {[%clk 0:00:43]} 58. Kh5
{[%clk 0:00:06.5]} 58... Qf3+ {[%clk 0:00:40.7]} 59. Kh4 {[%clk 0:00:06.3]}
59... Kf6 {[%clk 0:00:39.4]} 60. Rg4 {[%clk 0:00:04.5]} 60... Qh1+ {[%clk
0:00:38.2]} 61. Kg3 {[%clk 0:00:04.7]} 61... Kf5 {[%clk 0:00:38.6]} 62. Rf4+
{[%clk 0:00:04.4]} 62... Kg5 {[%clk 0:00:39.3]} 63. Rg4+ {[%clk 0:00:04.9]}
63... Kf5 {[%clk 0:00:38.8]} 64. Rf4+ {[%clk 0:00:05.4]} 64... Ke5 {[%clk
0:00:39.5]} 65. Rg4 {[%clk 0:00:06]} 65... Qg1+ {[%clk 0:00:39.2]} 66. Kf3
{[%clk 0:00:05.1]} 66... Qh2 {[%clk 0:00:38.2]} 67. Rg5+ {[%clk 0:00:04.9]}
67... Kd4 {[%clk 0:00:38.1]} 68. Rg4+ {[%clk 0:00:05.5]} 68... Kd3 {[%clk
0:00:38.8]} 69. Rf4 {[%clk 0:00:05.7]} 69... Qe2+ {[%clk 0:00:38.1]} 70. Kg3
{[%clk 0:00:06.2]} 70... Ke3 {[%clk 0:00:39]} 71. Rg4 {[%clk 0:00:05]} 71...
Qf3+ {[%clk 0:00:29.4]} 72. Kh4 {[%clk 0:00:05.3]} 72... Qf6+ {[%clk 0:00:27.2]}
73. Kg3 {[%clk 0:00:05.5]} 73... Qd6+ {[%clk 0:00:26.2]} 74. Kh3 {[%clk
0:00:05.4]} 74... Kf3 {[%clk 0:00:26.3]} 75. Rg5 {[%clk 0:00:01.2]} 75... Qh6+
{[%clk 0:00:25.6]} 76. Rh5 {[%clk 0:00:01.7]} 76... Qxh5# {[%clk 0:00:26.1]} 0-1

[Event "Late-Titled-Tuesday-Blitz-February-27-2024"]
[Site "Chess.com"]
[Date "2024.02.27"]
[Round "5"]
[White "ChessFanNM"]
[Black "SergioMoralesG"]
[Result "0-1"]
[WhiteElo "2331"]
[BlackElo "2514"]
[TimeControl "180+1"]
[EndTime "14:57:37 PST"]
[Termination "SergioMoralesG won by checkmate"]

1. e4 {[%clk 0:02:59.2]} 1... c5 {[%clk 0:02:59.7]} 2. Nf3 {[%clk 0:02:58.2]}
2... e6 {[%clk 0:03:00.1]} 3. c3 {[%clk 0:02:57.6]} 3... Nf6 {[%clk 0:02:59.8]}
4. e5 {[%clk 0:02:57.1]} 4... Nd5 {[%clk 0:03:00.2]} 5. d4 {[%clk 0:02:57.3]}
5... cxd4 {[%clk 0:03:01.1]} 6. Bc4 {[%clk 0:02:55.7]} 6... d6 {[%clk
0:02:59.4]} 7. cxd4 {[%clk 0:02:49.5]} 7... Nc6 {[%clk 0:02:59]} 8. O-O {[%clk
0:02:46.5]} 8... Be7 {[%clk 0:02:58.4]} 9. Nbd2 {[%clk 0:02:43.4]} 9... dxe5
{[%clk 0:02:46]} 10. dxe5 {[%clk 0:02:39.1]} 10... Nb6 {[%clk 0:02:46.1]} 11.
Bb3 {[%clk 0:02:37.6]} 11... Nd4 {[%clk 0:02:41.6]} 12. Nxd4 {[%clk 0:02:24.2]}
12... Qxd4 {[%clk 0:02:42.5]} 13. Qe2 {[%clk 0:02:24.5]} 13... O-O {[%clk
0:02:31.5]} 14. Nf3 {[%clk 0:02:24.1]} 14... Qg4 {[%clk 0:02:27.5]} 15. h3
{[%clk 0:02:17.8]} 15... Qh5 {[%clk 0:02:27.5]} 16. Rd1 {[%clk 0:02:11.9]} 16...
Bd7 {[%clk 0:02:25.8]} 17. Bf4 {[%clk 0:01:57.8]} 17... Bc6 {[%clk 0:02:24.5]}
18. Rac1 {[%clk 0:01:52.1]} 18... Rfd8 {[%clk 0:02:19.4]} 19. Nd4 {[%clk
0:01:34.8]} 19... Qxe2 {[%clk 0:02:05.4]} 20. Nxe2 {[%clk 0:01:35.7]} 20... Nd5
{[%clk 0:01:38.9]} 21. Bd2 {[%clk 0:01:15.3]} 21... Be8 {[%clk 0:01:10.7]} 22.
a3 {[%clk 0:01:09.4]} 22... Rac8 {[%clk 0:00:59.3]} 23. Nc3 {[%clk 0:00:59.8]}
23... Nb6 {[%clk 0:00:46.3]} 24. Be3 {[%clk 0:00:54.2]} 24... Bc6 {[%clk
0:00:45.1]} 25. a4 {[%clk 0:00:36.6]} 25... Nd7 {[%clk 0:00:44]} 26. Bxa7 {[%clk
0:00:25.6]} 26... Nxe5 {[%clk 0:00:43]} 27. Bb6 {[%clk 0:00:23.8]} 27... Rxd1+
{[%clk 0:00:30.4]} 28. Rxd1 {[%clk 0:00:24.7]} 28... h6 {[%clk 0:00:27.6]} 29.
Rd2 {[%clk 0:00:20]} 29... Bb4 {[%clk 0:00:26.3]} 30. Re2 {[%clk 0:00:19]} 30...
Nd3 {[%clk 0:00:24.4]} 31. Re3 {[%clk 0:00:16.4]} 31... Nxb2 {[%clk 0:00:23.9]}
32. Nb5 {[%clk 0:00:14.2]} 32... Bxb5 {[%clk 0:00:14.9]} 33. axb5 {[%clk
0:00:15.1]} 33... Bd6 {[%clk 0:00:15.1]} 34. g3 {[%clk 0:00:13.9]} 34... Nc4
{[%clk 0:00:12]} 35. Bxc4 {[%clk 0:00:07.1]} 35... Rxc4 {[%clk 0:00:12.9]} 36.
Rd3 {[%clk 0:00:07.1]} 36... Bc5 {[%clk 0:00:10.5]} 37. Rd8+ {[%clk 0:00:05.9]}
37... Kh7 {[%clk 0:00:10.7]} 38. Rc8 {[%clk 0:00:04.1]} 38... Bxf2+ {[%clk
0:00:10.1]} 39. Kxf2 {[%clk 0:00:04.1]} 39... Rxc8 {[%clk 0:00:11]} 40. Bd4
{[%clk 0:00:04.6]} 40... Rc4 {[%clk 0:00:10.3]} 41. Be3 {[%clk 0:00:04.7]} 41...
Rb4 {[%clk 0:00:10]} 42. b6 {[%clk 0:00:04.9]} 42... Kg6 {[%clk 0:00:10.4]} 43.
g4 {[%clk 0:00:04.7]} 43... Kf6 {[%clk 0:00:10.2]} 44. Kf3 {[%clk 0:00:05.1]}
44... Ke5 {[%clk 0:00:10.2]} 45. Bf2 {[%clk 0:00:05.5]} 45... Rb3+ {[%clk
0:00:10.4]} 46. Kg2 {[%clk 0:00:05.3]} 46... Ke4 {[%clk 0:00:10.9]} 47. Bg3
{[%clk 0:00:05.2]} 47... Rxb6 {[%clk 0:00:09.8]} 48. Bf2 {[%clk 0:00:05.5]}
48... Rb2 {[%clk 0:00:09.9]} 49. h4 {[%clk 0:00:05.8]} 49... f5 {[%clk
0:00:09.7]} 50. g5 {[%clk 0:00:05.5]} 50... hxg5 {[%clk 0:00:09.1]} 51. hxg5
{[%clk 0:00:06.4]} 51... f4 {[%clk 0:00:09.6]} 52. g6 {[%clk 0:00:06.6]} 52...
Kf5 {[%clk 0:00:08.3]} 53. Kf3 {[%clk 0:00:06.9]} 53... Rb3+ {[%clk 0:00:07.4]}
54. Kg2 {[%clk 0:00:06.2]} 54... Kg4 {[%clk 0:00:07.5]} 55. Bd4 {[%clk
0:00:05.7]} 55... Rd3 {[%clk 0:00:04.9]} 56. Bxg7 {[%clk 0:00:05.2]} 56... Rd2+
{[%clk 0:00:04.7]} 57. Kf1 {[%clk 0:00:05.6]} 57... Kf5 {[%clk 0:00:05.1]} 58.
Bh6 {[%clk 0:00:05.1]} 58... Kxg6 {[%clk 0:00:04.7]} 59. Bxf4 {[%clk 0:00:05.3]}
59... Rc2 {[%clk 0:00:05.2]} 60. Be5 {[%clk 0:00:05.2]} 60... Kf5 {[%clk
0:00:05.7]} 61. Bd4 {[%clk 0:00:04.9]} 61... e5 {[%clk 0:00:06.6]} 62. Be3
{[%clk 0:00:04.9]} 62... e4 {[%clk 0:00:07.1]} 63. Ke1 {[%clk 0:00:04.7]} 63...
Kg4 {[%clk 0:00:08]} 64. Bf2 {[%clk 0:00:04.7]} 64... Ra2 {[%clk 0:00:08.5]} 65.
Bd4 {[%clk 0:00:04.7]} 65... Kf3 {[%clk 0:00:09]} 66. Kf1 {[%clk 0:00:02.8]}
66... e3 {[%clk 0:00:09.3]} 67. Bc3 {[%clk 0:00:02]} 67... Rh2 {[%clk
0:00:07.9]} 68. Be5 {[%clk 0:00:01.2]} 68... Rh1# {[%clk 0:00:07.6]} 0-1

[Event "Late-Titled-Tuesday-Blitz-February-27-2024"]
[Site "Chess.com"]
[Date "2024.02.27"]
[Round "5"]
[White "korkmaz16"]
[Black "Fh2411"]
[Result "0-1"]
[WhiteElo "2470"]
[BlackElo "2614"]
[TimeControl "180+1"]
[EndTime "14:57:44 PST"]
[Termination "Fh2411 won by resignation"]

1. e4 {[%clk 0:02:56.5]} 1... c6 {[%clk 0:02:54.4]} 2. d4 {[%clk 0:02:55.5]}
2... d5 {[%clk 0:02:50.5]} 3. Nc3 {[%clk 0:02:55.6]} 3... dxe4 {[%clk
0:02:50.4]} 4. Nxe4 {[%clk 0:02:56.5]} 4... Nf6 {[%clk 0:02:51]} 5. Nxf6+ {[%clk
0:02:56.3]} 5... exf6 {[%clk 0:02:51.9]} 6. Bc4 {[%clk 0:02:54.6]} 6... Bd6
{[%clk 0:02:51.2]} 7. Qe2+ {[%clk 0:02:54.7]} 7... Be7 {[%clk 0:02:49.6]} 8. Qh5
{[%clk 0:02:51.5]} 8... O-O {[%clk 0:02:43.4]} 9. Nf3 {[%clk 0:02:49.8]} 9... g6
{[%clk 0:02:10.4]} 10. Qh4 {[%clk 0:02:38.2]} 10... Nd7 {[%clk 0:01:08.1]} 11.
Bh6 {[%clk 0:02:27.8]} 11... Bb4+ {[%clk 0:01:07.6]} 12. c3 {[%clk 0:02:26.2]}
12... Re8+ {[%clk 0:01:07.9]} 13. Be3 {[%clk 0:02:22.5]} 13... Bf8 {[%clk
0:01:08.2]} 14. O-O-O {[%clk 0:02:12.6]} 14... Nb6 {[%clk 0:01:08.3]} 15. Bb3
{[%clk 0:02:11]} 15... Be6 {[%clk 0:01:08.8]} 16. Bh6 {[%clk 0:02:02.3]} 16...
Bg7 {[%clk 0:00:49.9]} 17. Bxg7 {[%clk 0:01:59.5]} 17... Kxg7 {[%clk 0:00:50.8]}
18. Rhe1 {[%clk 0:01:51.4]} 18... Bxb3 {[%clk 0:00:46.6]} 19. axb3 {[%clk
0:01:51.3]} 19... Qd5 {[%clk 0:00:47]} 20. Kc2 {[%clk 0:01:49.8]} 20... a5
{[%clk 0:00:47.5]} 21. Nd2 {[%clk 0:01:18.5]} 21... a4 {[%clk 0:00:42.8]} 22.
bxa4 {[%clk 0:01:14.7]} 22... Qf5+ {[%clk 0:00:32]} 23. Kb3 {[%clk 0:01:08.8]}
23... Qa5 {[%clk 0:00:26.4]} 24. d5 {[%clk 0:00:57.7]} 24... Qxd5+ {[%clk
0:00:12.8]} 25. Kc2 {[%clk 0:00:57.5]} 25... Qf5+ {[%clk 0:00:10.9]} 26. Kb3
{[%clk 0:00:46.3]} 26... Rxe1 {[%clk 0:00:10.9]} 27. Rxe1 {[%clk 0:00:45.9]}
27... Rxa4 {[%clk 0:00:11.4]} 28. Ne4 {[%clk 0:00:42.6]} 28... Ra5 {[%clk
0:00:07.4]} 29. f3 {[%clk 0:00:41.6]} 29... Rb5+ {[%clk 0:00:06.9]} 30. Kc2
{[%clk 0:00:41.4]} 30... Nc4 {[%clk 0:00:07.4]} 31. b3 {[%clk 0:00:40.3]} 31...
Ne5 {[%clk 0:00:07.4]} 32. Re3 {[%clk 0:00:30.4]} 32... Ra5 {[%clk 0:00:07.9]}
33. Kb2 {[%clk 0:00:29.6]} 33... c5 {[%clk 0:00:08.2]} 34. c4 {[%clk 0:00:27.1]}
34... b5 {[%clk 0:00:06.5]} 35. Nd6 {[%clk 0:00:24.3]} 35... Qe6 {[%clk
0:00:04.1]} 36. Nxb5 {[%clk 0:00:21.2]} 36... Qa6 {[%clk 0:00:04.8]} 37. Kc3
{[%clk 0:00:15.7]} 37... Ra2 {[%clk 0:00:05.3]} 38. Rxe5 {[%clk 0:00:16]} 38...
Qa5+ {[%clk 0:00:04]} 39. Kd3 {[%clk 0:00:16.2]} 39... Qd2+ {[%clk 0:00:04.7]}
40. Ke4 {[%clk 0:00:16.4]} 40... fxe5 {[%clk 0:00:04.5]} 41. Kxe5 {[%clk
0:00:14.6]} 41... Qd7 {[%clk 0:00:03.9]} 42. Qf6+ {[%clk 0:00:13.8]} 42... Kg8
{[%clk 0:00:04.4]} 43. Qd6 {[%clk 0:00:09.9]} 43... Re2+ {[%clk 0:00:05]} 44.
Kf4 {[%clk 0:00:10]} 44... Qf5+ {[%clk 0:00:05.5]} 45. Kg3 {[%clk 0:00:10.4]}
45... Qg5+ {[%clk 0:00:06.1]} 46. Kh3 {[%clk 0:00:10.2]} 46... Qxg2+ {[%clk
0:00:06.8]} 47. Kh4 {[%clk 0:00:10.8]} 47... Qxh2+ {[%clk 0:00:04.5]} 48. Qxh2
{[%clk 0:00:10.3]} 48... Rxh2+ {[%clk 0:00:05.4]} 49. Kg3 {[%clk 0:00:10.1]}
49... Rb2 {[%clk 0:00:06.3]} 50. Nc7 {[%clk 0:00:09.2]} 50... Rxb3 {[%clk
0:00:06.8]} 51. Nd5 {[%clk 0:00:10.1]} 51... Rb2 {[%clk 0:00:05.9]} 52. Nf6+
{[%clk 0:00:10.4]} 52... Kh8 {[%clk 0:00:05.6]} 53. Ne4 {[%clk 0:00:11.3]} 53...
Rc2 {[%clk 0:00:05.5]} 54. Nxc5 {[%clk 0:00:11.9]} 54... Rxc4 {[%clk 0:00:06.4]}
55. Nd7 {[%clk 0:00:12.5]} 55... Ra4 {[%clk 0:00:06.6]} 56. Ne5 {[%clk
0:00:12.9]} 56... Kg7 {[%clk 0:00:06.8]} 57. Nc6 {[%clk 0:00:13.1]} 57... h5
{[%clk 0:00:07.1]} 58. Ne5 {[%clk 0:00:13.4]} 58... h4+ {[%clk 0:00:07.6]} 59.
Kh3 {[%clk 0:00:13.1]} 59... g5 {[%clk 0:00:08.2]} 60. Ng4 {[%clk 0:00:12.3]}
60... f5 {[%clk 0:00:08.7]} 61. Ne3 {[%clk 0:00:13.2]} 61... Kg6 {[%clk
0:00:08.7]} 62. Nd5 {[%clk 0:00:12.6]} 62... Ra3 {[%clk 0:00:09.3]} 63. Ne7+
{[%clk 0:00:13.2]} 63... Kf6 {[%clk 0:00:09.5]} 64. Nd5+ {[%clk 0:00:14.1]}
64... Ke5 {[%clk 0:00:09.7]} 65. Nb6 {[%clk 0:00:11.4]} 65... Rxf3+ {[%clk
0:00:10.1]} 66. Kg2 {[%clk 0:00:11.4]} 66... g4 {[%clk 0:00:11]} 67. Nc4+ {[%clk
0:00:11]} 67... Kf4 {[%clk 0:00:11.6]} 68. Nd2 {[%clk 0:00:11.7]} 68... h3+
{[%clk 0:00:12.4]} 69. Kh2 {[%clk 0:00:11.7]} 69... Ra3 {[%clk 0:00:13]} 70. Nf1
{[%clk 0:00:11.4]} 70... Ra2+ {[%clk 0:00:13.4]} 71. Kh1 {[%clk 0:00:12.3]}
71... g3 {[%clk 0:00:13.8]} 72. Nxg3 {[%clk 0:00:12.7]} 72... Kxg3 {[%clk
0:00:14.7]} 0-1